[Event "European Rapid Championship 2021"]
[Site "Katowice"]
[Date "2021.12.18"]
[Round "6.17"]
[White "Chojnacki, Slawomir"]
[Black "Durarbayli, Vasif"]
[Result "0-1"]
[ECO "A46"]
[WhiteElo "2165"]
[BlackElo "2532"]
[Annotator "ChessBase"]
[PlyCount "70"]
[EventDate "2021.12.18"]
[EventType "swiss"]
[EventCountry "POL"]
[SourceTitle "playchess.com"]
[Source "ChessBase"]
[SourceQuality "1"]
[TimeControl "900+10"]

1. d4 {[%emt 0:00:01]} Nf6 {[%emt 0:00:01]} 2. Nf3 {[%emt 0:00:01]} e6 {
[%emt 0:00:01]} 3. Bf4 {[%emt 0:00:06]} c5 {[%emt 0:00:01]} 4. c3 {[%emt 0:00:
01]} Nc6 {[%emt 0:00:01]} 5. e3 {[%emt 0:00:02]} d5 {[%emt 0:00:11]} 6. Nbd2 {
[%emt 0:00:02]} Bd6 {[%emt 0:00:01]} 7. Bg3 {[%emt 0:00:05]} O-O {[%emt 0:00:
04]} 8. Be2 {[%emt 0:00:17]} b6 {[%emt 0:00:02]} 9. O-O {[%emt 0:00:03]} Bb7 {
[%emt 0:00:01]} 10. Rc1 {[%emt 0:00:12]} Ne7 {[%emt 0:00:22]} 11. Bxd6 {
[%emt 0:00:28]} Qxd6 {[%emt 0:00:02]} 12. Ne5 {[%emt 0:00:03]} Rfd8 {[%emt 0:
00:20]} 13. Bd3 {[%emt 0:00:10]} a6 {[%emt 0:00:27]} 14. f4 {[%emt 0:00:09]}
Nf5 {[%emt 0:00:43]} 15. Qe2 {[%emt 0:00:35]} h5 {[%emt 0:00:02]} 16. Ndf3 {
[%emt 0:01:05]} Rf8 {[%emt 0:02:16]} 17. Ng5 {[%emt 0:00:30]} g6 {[%emt 0:00:
11]} 18. g3 {[%emt 0:02:17]} Kg7 {[%emt 0:01:04]} 19. Rce1 {[%emt 0:00:22]} Bc6
{[%emt 0:00:29]} 20. Kg2 {[%emt 0:01:58]} Bb5 {[%emt 0:00:14]} 21. h3 {[%emt 0:
01:06]} h4 {[%emt 0:00:39]} 22. gxh4 {[%emt 0:00:52]} Nxh4+ {[%emt 0:00:02]}
23. Kf2 {[%emt 0:00:09]} Ne4+ {[%emt 0:00:46]} 24. Nxe4 {[%emt 0:00:17]} dxe4 {
[%emt 0:00:02]} 25. Bxb5 {[%emt 0:00:10]} axb5 {[%emt 0:00:01]} 26. Qxb5 {
[%emt 0:01:14]} Rxa2 {[%emt 0:00:26]} 27. dxc5 {[%emt 0:00:15]} Qxc5 {[%emt 0:
02:02]} 28. Qb3 {[%emt 0:00:27]} Rfa8 {[%emt 0:00:58]} 29. Re2 {[%emt 0:00:25]}
Nf3 {[%emt 0:02:24]} 30. Nxf3 {[%emt 0:00:20]} exf3 {[%emt 0:00:01]} 31. Rd2 {
[%emt 0:01:12]} R2a4 {[%emt 0:02:26]} 32. Qd1 {[%emt 0:01:26]} e5 {[%emt 0:01:
21]} 33. Rd5 {[%emt 0:01:48]} Qc4 {[%emt 0:00:12]} 34. Rxe5 {[%emt 0:00:31]}
Ra1 {[%emt 0:00:06]} 35. b3 {[%emt 0:00:29]} R8a2+ {[%emt 0:00:16]} 0-1

[Event "European Rapid Championship 2021"]
[Site "Katowice"]
[Date "2021.12.18"]
[Round "6.18"]
[White "Stefansson, Hannes"]
[Black "Niedbala, Bartlomiej"]
[Result "1-0"]
[ECO "B15"]
[WhiteElo "2519"]
[BlackElo "2131"]
[Annotator "ChessBase"]
[PlyCount "75"]
[EventDate "2021.12.18"]
[EventType "swiss"]
[EventCountry "POL"]
[SourceTitle "playchess.com"]
[Source "ChessBase"]
[SourceQuality "1"]
[TimeControl "900+10"]

1. e4 {[%emt 0:00:03]} c6 {[%emt 0:01:43]} 2. d4 {[%emt 0:00:03]} d5 {[%emt 0:
00:02]} 3. Nc3 {[%emt 0:00:04]} dxe4 {[%emt 0:00:01]} 4. Nxe4 {[%emt 0:00:01]}
Nf6 {[%emt 0:00:02]} 5. Nxf6+ {[%emt 0:00:04]} exf6 {[%emt 0:00:02]} 6. Be3 {
[%emt 0:00:07]} Qb6 {[%emt 0:00:05]} 7. Qe2 {[%emt 0:01:20]} Be6 {[%emt 0:01:
49]} 8. c3 {[%emt 0:00:54]} Qc7 {[%emt 0:01:00]} 9. Qc2 {[%emt 0:00:38]} f5 {
[%emt 0:01:18]} 10. Bd3 {[%emt 0:00:31]} g6 {[%emt 0:00:38]} 11. Nf3 {[%emt 0:
00:22]} Bd5 {[%emt 0:01:26]} 12. O-O-O {[%emt 0:00:21]} Nd7 {[%emt 0:01:18]}
13. Bg5 {[%emt 0:01:16]} f6 {[%emt 0:00:26]} 14. Rhe1+ {[%emt 0:00:08]} Kf7 {
[%emt 0:00:01]} 15. Bd2 {[%emt 0:00:58]} Bd6 {[%emt 0:00:52]} 16. Nh4 {[%emt 0:
01:00]} b5 {[%emt 0:00:30]} 17. g4 {[%emt 0:00:44]} Rae8 {[%emt 0:02:33]} 18.
Bxf5 {[%emt 0:00:37]} Rxe1 {[%emt 0:01:03]} 19. Rxe1 {[%emt 0:00:01]} Rg8 {
[%emt 0:00:53]} 20. Be4 {[%emt 0:00:37]} Bxh2 {[%emt 0:00:28]} 21. Bxd5+ {
[%emt 0:00:35]} cxd5 {[%emt 0:00:02]} 22. Qd3 {[%emt 0:00:11]} Bf4 {[%emt 0:00:
26]} 23. Qxb5 {[%emt 0:00:34]} Bxd2+ {[%emt 0:00:13]} 24. Kxd2 {[%emt 0:00:01]}
Nb6 {[%emt 0:00:00]} 25. Qe2 {[%emt 0:00:16]} Qd6 {[%emt 0:00:25]} 26. b3 {
[%emt 0:00:19]} Rc8 {[%emt 0:00:14]} 27. Ng2 {[%emt 0:00:20]} a5 {[%emt 0:00:
38]} 28. f4 {[%emt 0:00:15]} Rb8 {[%emt 0:00:26]} 29. f5 {[%emt 0:00:18]} gxf5
{[%emt 0:00:46]} 30. gxf5 {[%emt 0:00:02]} Nc4+ {[%emt 0:00:34]} 31. Kd1 {
[%emt 0:00:17]} Na3 {[%emt 0:00:13]} 32. Qh5+ {[%emt 0:00:25]} Kg7 {[%emt 0:00:
01]} 33. Rh1 {[%emt 0:01:25]} Rh8 {[%emt 0:00:15]} 34. Qg4+ {[%emt 0:00:15]}
Kf7 {[%emt 0:00:12]} 35. Nf4 {[%emt 0:00:02]} Nb5 {[%emt 0:00:01]} 36. Ne6 {
[%emt 0:00:21]} Nxc3+ {[%emt 0:00:19]} 37. Kc2 {[%emt 0:00:02]} Rc8 {[%emt 0:
00:06]} 38. Rxh7+ {[%emt 0:00:05]} 1-0

[Event "European Rapid Championship 2021"]
[Site "Katowice"]
[Date "2021.12.18"]
[Round "6.18"]
[White "Szwed, Jacek"]
[Black "Jonsson, Gauti Pall"]
[Result "0-1"]
[ECO "B03"]
[WhiteElo "2372"]
[BlackElo "2014"]
[Annotator "NA"]
[PlyCount "85"]
[EventDate "2021.12.18"]
[EventType "swiss"]
[EventCountry "POL"]
[SourceTitle "playchess.com"]
[Source "ChessBase"]
[SourceQuality "1"]
[TimeControl "900+10"]

1. e4 {[%emt 0:00:05]} Nf6 {[%emt 0:00:06]} 2. e5 {[%emt 0:00:09]} Nd5 {
[%emt 0:00:03]} 3. d4 {[%emt 0:00:01]} Nb6 {[%emt 0:00:02]} 4. c4 {[%emt 0:00:
14]} d6 {[%emt 0:00:03]} 5. exd6 {[%emt 0:00:03]} cxd6 {[%emt 0:00:03]} 6. Nc3
{[%emt 0:00:02]} g6 {[%emt 0:00:05]} 7. Be3 {[%emt 0:00:01]} Bg7 {[%emt 0:00:
06]} 8. Rc1 {[%emt 0:00:02]} O-O {[%emt 0:00:17]} 9. b3 {[%emt 0:00:01]} Bf5 {
[%emt 0:00:45]} 10. g4 {[%emt 0:00:06]} Bd7 {[%emt 0:00:03]} 11. Bg2 {[%emt 0:
00:02]} Nc6 {[%emt 0:00:21]} 12. d5 {[%emt 0:00:01]} Ne5 {[%emt 0:00:30]} 13.
h3 {[%emt 0:00:02]} f5 {[%emt 0:00:21]} 14. f4 {[%emt 0:00:01]} Nf7 {[%emt 0:
01:28]} 15. g5 {[%emt 0:00:01]} e5 {[%emt 0:00:41]} 16. dxe6 {[%emt 0:00:04]}
Bxe6 {[%emt 0:00:03]} 17. Nge2 {[%emt 0:00:46]} Re8 {[%emt 0:00:51]} 18. Bd4 {
[%emt 0:00:31]} Bxd4 {[%emt 0:02:53]} 19. Qxd4 {[%emt 0:00:04]} Nxg5 {[%emt 0:
00:05]} 20. fxg5 {[%emt 0:00:29]} Qxg5 {[%emt 0:00:02]} 21. O-O {[%emt 0:00:07]
} Nd7 {[%emt 0:01:02]} 22. Qxd6 {[%emt 0:01:02]} Nf6 {[%emt 0:00:21]} 23. Qf4 {
[%emt 0:00:06]} Qxf4 {[%emt 0:01:26]} 24. Nxf4 {[%emt 0:00:05]} Bf7 {[%emt 0:
00:02]} 25. Bxb7 {[%emt 0:00:30]} Rab8 {[%emt 0:00:07]} 26. Bg2 {[%emt 0:00:03]
} Re3 {[%emt 0:00:11]} 27. Rfe1 {[%emt 0:00:23]} Rxe1+ {[%emt 0:00:37]} 28.
Rxe1 {[%emt 0:00:01]} g5 {[%emt 0:00:02]} 29. Nfd5 {[%emt 0:00:00]} Nh5 {
[%emt 0:00:37]} 30. Bf3 {[%emt 0:01:16]} Ng3 {[%emt 0:00:36]} 31. Ne2 {[%emt 0:
00:08]} Nxe2+ {[%emt 0:00:09]} 32. Rxe2 {[%emt 0:00:01]} Kg7 {[%emt 0:00:13]}
33. Re7 {[%emt 0:00:19]} Kf8 {[%emt 0:00:23]} 34. Re5 {[%emt 0:00:23]} Bg6 {
[%emt 0:00:12]} 35. Ne7 {[%emt 0:00:04]} Rd8 {[%emt 0:00:34]} 36. Bd5 {[%emt 0:
00:40]} Kg7 {[%emt 0:00:22]} 37. c5 {[%emt 0:00:08]} h5 {[%emt 0:00:41]} 38. c6
{[%emt 0:00:15]} g4 {[%emt 0:00:02]} 39. c7 {[%emt 0:00:08]} Rf8 {[%emt 0:00:
03]} 40. c8=Q {[%emt 0:00:12]} Rxc8 {[%emt 0:00:02]} 41. Nxc8 {[%emt 0:00:01]}
f4 {[%emt 0:00:09]} 42. hxg4 {[%emt 0:00:11]} hxg4 {[%emt 0:00:02]} 43. Rg5 {
[%emt 0:00:02]} 0-1

[Event "European Rapid Championship 2021"]
[Site "Katowice"]
[Date "2021.12.18"]
[Round "6.19"]
[White "Czerw, Dawid"]
[Black "Vetoshko, Volodymyr"]
[Result "0-1"]
[ECO "D31"]
[WhiteElo "2158"]
[BlackElo "2483"]
[Annotator "ChessBase"]
[PlyCount "78"]
[EventDate "2021.12.18"]
[EventType "swiss"]
[EventCountry "POL"]
[SourceTitle "playchess.com"]
[Source "ChessBase"]
[SourceQuality "1"]
[TimeControl "900+10"]

1. d4 {[%emt 0:00:02]} d5 {[%emt 0:00:01]} 2. c4 {[%emt 0:00:02]} e6 {[%emt 0:
00:00]} 3. Nc3 {[%emt 0:00:01]} a6 {[%emt 0:00:01]} 4. cxd5 {[%emt 0:00:30]}
exd5 {[%emt 0:00:01]} 5. Bf4 {[%emt 0:00:02]} Nf6 {[%emt 0:00:04]} 6. e3 {
[%emt 0:00:01]} Bd6 {[%emt 0:00:12]} 7. Bg5 {[%emt 0:00:08]} Be6 {[%emt 0:01:
51]} 8. Bd3 {[%emt 0:00:05]} Nbd7 {[%emt 0:00:08]} 9. Nge2 {[%emt 0:00:02]} h6
{[%emt 0:02:34]} 10. Bh4 {[%emt 0:00:12]} O-O {[%emt 0:00:44]} 11. h3 {[%emt 0:
00:02]} Re8 {[%emt 0:01:11]} 12. O-O {[%emt 0:00:04]} c6 {[%emt 0:01:06]} 13.
f3 {[%emt 0:00:43]} c5 {[%emt 0:00:21]} 14. Rc1 {[%emt 0:01:12]} b5 {[%emt 0:
00:32]} 15. a3 {[%emt 0:01:04]} Rc8 {[%emt 0:00:20]} 16. Kh1 {[%emt 0:00:25]}
Qb6 {[%emt 0:00:32]} 17. dxc5 {[%emt 0:02:01]} Bxc5 {[%emt 0:00:13]} 18. Nd4 {
[%emt 0:00:02]} Be7 {[%emt 0:03:38]} 19. f4 {[%emt 0:03:27]} Nc5 {[%emt 0:00:
53]} 20. f5 {[%emt 0:00:29]} Bd7 {[%emt 0:00:12]} 21. Bxf6 {[%emt 0:00:20]}
Bxf6 {[%emt 0:00:50]} 22. Nxd5 {[%emt 0:00:11]} Qd6 {[%emt 0:00:06]} 23. Nxf6+
{[%emt 0:00:35]} Qxf6 {[%emt 0:00:01]} 24. Qd2 {[%emt 0:01:06]} Qg5 {[%emt 0:
00:15]} 25. Rfe1 {[%emt 0:01:57]} Nxd3 {[%emt 0:00:20]} 26. Rxc8 {[%emt 0:00:
16]} Bxc8 {[%emt 0:00:17]} 27. Qxd3 {[%emt 0:00:03]} Bb7 {[%emt 0:00:33]} 28.
e4 {[%emt 0:00:12]} Qf4 {[%emt 0:00:39]} 29. Nf3 {[%emt 0:03:00]} Rxe4 {
[%emt 0:00:50]} 30. Rxe4 {[%emt 0:00:14]} Bxe4 {[%emt 0:00:09]} 31. Qc3 {
[%emt 0:01:04]} Qxf5 {[%emt 0:00:11]} 32. Nd2 {[%emt 0:00:08]} Bd5 {[%emt 0:00:
13]} 33. Qe3 {[%emt 0:00:10]} Qc2 {[%emt 0:00:54]} 34. b4 {[%emt 0:00:06]} Qc6
{[%emt 0:00:12]} 35. Nf3 {[%emt 0:00:35]} Bxf3 {[%emt 0:00:12]} 36. gxf3 {
[%emt 0:00:01]} Qe6 {[%emt 0:00:07]} 37. Qc3 {[%emt 0:00:10]} Qxh3+ {[%emt 0:
00:03]} 38. Kg1 {[%emt 0:00:01]} Qe6 {[%emt 0:00:11]} 39. Qd3 {[%emt 0:00:01]}
Qg6+ {[%emt 0:00:04]} 0-1

[Event "European Rapid Championship 2021"]
[Site "Katowice"]
[Date "2021.12.18"]
[Round "6.19"]
[White "Malek, Jan"]
[Black "Wisniewski, Michal"]
[Result "1-0"]
[ECO "A56"]
[WhiteElo "2029"]
[BlackElo "2248"]
[Annotator "NA"]
[PlyCount "77"]
[EventDate "2021.12.18"]
[EventType "swiss"]
[EventCountry "POL"]
[SourceTitle "playchess.com"]
[Source "ChessBase"]
[SourceQuality "1"]
[TimeControl "900+10"]

1. d4 {[%emt 0:00:02]} Nf6 {[%emt 0:00:00]} 2. c4 {[%emt 0:00:01]} c5 {[%emt 0:
00:01]} 3. Nf3 {[%emt 0:00:13]} cxd4 {[%emt 0:00:00]} 4. Nxd4 {[%emt 0:00:01]}
e5 {[%emt 0:00:01]} 5. Nb5 {[%emt 0:00:10]} d5 {[%emt 0:00:03]} 6. cxd5 {
[%emt 0:00:07]} Bc5 {[%emt 0:00:01]} 7. e3 {[%emt 0:00:07]} Qb6 {[%emt 0:00:05]
} 8. N1c3 {[%emt 0:00:13]} O-O {[%emt 0:00:08]} 9. a3 {[%emt 0:00:08]} Rd8 {
[%emt 0:01:00]} 10. Na4 {[%emt 0:00:28]} Rxd5 {[%emt 0:00:47]} 11. Qxd5 {
[%emt 0:00:16]} Nxd5 {[%emt 0:00:10]} 12. Nxb6 {[%emt 0:00:02]} axb6 {[%emt 0:
00:07]} 13. Bc4 {[%emt 0:00:07]} Ne7 {[%emt 0:00:16]} 14. b4 {[%emt 0:00:02]}
Bxb4+ {[%emt 0:00:01]} 15. Ke2 {[%emt 0:00:13]} Nbc6 {[%emt 0:00:04]} 16. Rd1 {
[%emt 0:00:26]} e4 {[%emt 0:00:15]} 17. Bb2 {[%emt 0:00:23]} Bc5 {[%emt 0:00:
23]} 18. Nd6 {[%emt 0:00:36]} Bg4+ {[%emt 0:00:03]} 19. f3 {[%emt 0:00:01]}
exf3+ {[%emt 0:00:01]} 20. gxf3 {[%emt 0:00:01]} Bh5 {[%emt 0:00:02]} 21. Nxb7
{[%emt 0:00:08]} Na5 {[%emt 0:00:28]} 22. Nxa5 {[%emt 0:00:13]} bxa5 {[%emt 0:
00:00]} 23. Rac1 {[%emt 0:00:05]} Rb8 {[%emt 0:00:10]} 24. Rd2 {[%emt 0:00:14]}
Bb6 {[%emt 0:00:07]} 25. Be5 {[%emt 0:00:36]} Re8 {[%emt 0:00:07]} 26. Bb5 {
[%emt 0:00:05]} Ra8 {[%emt 0:00:21]} 27. Rd6 {[%emt 0:00:08]} Bxe3 {[%emt 0:00:
14]} 28. Kxe3 {[%emt 0:00:03]} Nf5+ {[%emt 0:00:01]} 29. Kf4 {[%emt 0:00:02]}
Nxd6 {[%emt 0:00:01]} 30. Bxd6 {[%emt 0:00:02]} h6 {[%emt 0:00:01]} 31. Rc7 {
[%emt 0:00:19]} Rd8 {[%emt 0:00:12]} 32. Rd7 {[%emt 0:00:54]} Rc8 {[%emt 0:00:
07]} 33. Bd3 {[%emt 0:00:22]} g5+ {[%emt 0:00:08]} 34. Ke3 {[%emt 0:00:02]} g4
{[%emt 0:00:33]} 35. Rc7 {[%emt 0:00:34]} Rd8 {[%emt 0:00:21]} 36. Be7 {
[%emt 0:00:02]} Re8 {[%emt 0:00:18]} 37. fxg4 {[%emt 0:00:03]} Bxg4 {[%emt 0:
00:01]} 38. Kf4 {[%emt 0:00:01]} Be6 {[%emt 0:00:06]} 39. Bf5 {[%emt 0:00:05]}
1-0

[Event "European Rapid Championship 2021"]
[Site "Katowice"]
[Date "2021.12.18"]
[Round "6.20"]
[White "Tworzydlo, Piotr"]
[Black "Blohberger, Felix"]
[Result "0-1"]
[ECO "B52"]
[WhiteElo "2152"]
[BlackElo "2409"]
[Annotator "ChessBase"]
[PlyCount "265"]
[EventDate "2021.12.18"]
[EventType "swiss"]
[EventCountry "POL"]
[SourceTitle "playchess.com"]
[Source "ChessBase"]
[SourceQuality "1"]
[TimeControl "900+10"]

1. e4 {[%emt 0:00:03]} c5 {[%emt 0:00:01]} 2. Nf3 {[%emt 0:00:04]} d6 {[%emt 0:
00:01]} 3. Bb5+ {[%emt 0:00:11]} Bd7 {[%emt 0:00:01]} 4. a4 {[%emt 0:00:19]}
Nf6 {[%emt 0:00:20]} 5. Nc3 {[%emt 0:00:06]} a6 {[%emt 0:00:02]} 6. Bxd7+ {
[%emt 0:00:14]} Nbxd7 {[%emt 0:00:01]} 7. O-O {[%emt 0:00:23]} e6 {[%emt 0:00:
22]} 8. d4 {[%emt 0:00:22]} cxd4 {[%emt 0:00:02]} 9. Qxd4 {[%emt 0:00:34]} Be7
{[%emt 0:00:03]} 10. Rd1 {[%emt 0:00:22]} O-O {[%emt 0:00:14]} 11. Bg5 {
[%emt 0:00:35]} Qc7 {[%emt 0:00:22]} 12. h3 {[%emt 0:00:59]} Rac8 {[%emt 0:01:
14]} 13. Qe3 {[%emt 0:02:58]} Nb6 {[%emt 0:01:44]} 14. Nd2 {[%emt 0:01:20]}
Rfd8 {[%emt 0:00:29]} 15. a5 {[%emt 0:00:48]} Nc4 {[%emt 0:00:22]} 16. Nxc4 {
[%emt 0:00:03]} Qxc4 {[%emt 0:00:01]} 17. Ra4 {[%emt 0:00:37]} Qc7 {[%emt 0:00:
22]} 18. Bf4 {[%emt 0:01:32]} Nd7 {[%emt 0:00:36]} 19. Bg3 {[%emt 0:00:19]} Ne5
{[%emt 0:00:16]} 20. Rdd4 {[%emt 0:03:13]} Nc6 {[%emt 0:00:32]} 21. Rdc4 {
[%emt 0:00:16]} Qd7 {[%emt 0:00:02]} 22. Ra1 {[%emt 0:00:31]} d5 {[%emt 0:03:
28]} 23. Rd1 {[%emt 0:00:54]} d4 {[%emt 0:00:09]} 24. Qe2 {[%emt 0:00:51]} Nxa5
{[%emt 0:01:29]} 25. Rcxd4 {[%emt 0:00:43]} Qxd4 {[%emt 0:00:03]} 26. Rxd4 {
[%emt 0:00:04]} Rxd4 {[%emt 0:00:01]} 27. Be5 {[%emt 0:00:24]} Rd7 {[%emt 0:00:
02]} 28. Qg4 {[%emt 0:00:14]} g6 {[%emt 0:00:01]} 29. Nd5 {[%emt 0:00:24]} f5 {
[%emt 0:02:49]} 30. Nxe7+ {[%emt 0:00:18]} Rxe7 {[%emt 0:00:01]} 31. Qe2 {
[%emt 0:00:15]} Nc6 {[%emt 0:00:24]} 32. Bc3 {[%emt 0:00:02]} f4 {[%emt 0:01:
12]} 33. h4 {[%emt 0:00:11]} e5 {[%emt 0:00:55]} 34. Qg4 {[%emt 0:00:02]} Rf8 {
[%emt 0:00:04]} 35. h5 {[%emt 0:00:05]} Kg7 {[%emt 0:00:22]} 36. Qh4 {[%emt 0:
00:13]} Rf6 {[%emt 0:00:06]} 37. h6+ {[%emt 0:00:07]} Kf7 {[%emt 0:00:03]} 38.
Qg4 {[%emt 0:00:04]} Rd6 {[%emt 0:00:32]} 39. g3 {[%emt 0:00:13]} fxg3 {
[%emt 0:00:15]} 40. f4 {[%emt 0:00:32]} Rf6 {[%emt 0:01:39]} 41. f5 {[%emt 0:
00:17]} Kf8 {[%emt 0:00:53]} 42. fxg6 {[%emt 0:00:07]} Rxg6 {[%emt 0:00:01]}
43. Qc8+ {[%emt 0:00:05]} Kf7 {[%emt 0:00:07]} 44. Qf5+ {[%emt 0:00:07]} Ke8 {
[%emt 0:00:32]} 45. Qc8+ {[%emt 0:00:06]} Kf7 {[%emt 0:00:01]} 46. Qf5+ {
[%emt 0:00:02]} Kg8 {[%emt 0:00:20]} 47. Qc8+ {[%emt 0:00:03]} Kf7 {[%emt 0:00:
01]} 48. Qf5+ {[%emt 0:00:09]} Ke8 {[%emt 0:00:09]} 49. Qc8+ {[%emt 0:00:02]}
Nd8 {[%emt 0:00:15]} 50. Ba5 {[%emt 0:00:14]} b6 {[%emt 0:00:01]} 51. Bb4 {
[%emt 0:00:05]} Rd7 {[%emt 0:00:17]} 52. Qxa6 {[%emt 0:00:03]} g2 {[%emt 0:00:
03]} 53. Qb5 {[%emt 0:00:12]} Nc6 {[%emt 0:00:09]} 54. Be1 {[%emt 0:00:18]} Rf7
{[%emt 0:00:08]} 55. Bg3 {[%emt 0:00:15]} Rf3 {[%emt 0:00:25]} 56. Kxg2 {
[%emt 0:00:44]} Rfxg3+ {[%emt 0:00:07]} 57. Kf1 {[%emt 0:00:10]} Ke7 {[%emt 0:
00:14]} 58. Qxb6 {[%emt 0:00:12]} Rg1+ {[%emt 0:00:10]} 59. Kf2 {[%emt 0:00:02]
} R1g2+ {[%emt 0:00:07]} 60. Kf1 {[%emt 0:00:01]} Rg1+ {[%emt 0:00:16]} 61. Kf2
{[%emt 0:00:01]} R1g2+ {[%emt 0:00:01]} 62. Kf1 {[%emt 0:00:01]} Rxc2 {[%emt 0:
00:14]} 63. Qc7+ {[%emt 0:00:01]} Kf6 {[%emt 0:00:05]} 64. Qxh7 {[%emt 0:00:08]
} Rgg2 {[%emt 0:00:17]} 65. Qf5+ {[%emt 0:00:12]} Ke7 {[%emt 0:00:01]} 66. h7 {
[%emt 0:00:14]} Rh2 {[%emt 0:00:00]} 67. Kg1 {[%emt 0:00:25]} Rcg2+ {[%emt 0:
00:03]} 68. Kf1 {[%emt 0:00:01]} Rxb2 {[%emt 0:00:02]} 69. Kg1 {[%emt 0:00:11]}
Rbg2+ {[%emt 0:00:06]} 70. Kf1 {[%emt 0:00:00]} Rc2 {[%emt 0:00:00]} 71. Qg5+ {
[%emt 0:00:00]} Kd7 {[%emt 0:00:40]} 72. h8=Q {[%emt 0:00:21]} Rxh8 {[%emt 0:
00:01]} 73. Qg7+ {[%emt 0:00:02]} Kd6 {[%emt 0:00:01]} 74. Qxh8 {[%emt 0:00:09]
} Kc5 {[%emt 0:00:29]} 75. Qg8 {[%emt 0:00:44]} Rd2 {[%emt 0:00:19]} 76. Ke1 {
[%emt 0:00:18]} Rd4 {[%emt 0:00:02]} 77. Qf8+ {[%emt 0:00:12]} Kb6 {[%emt 0:00:
04]} 78. Qf3 {[%emt 0:00:11]} Kb5 {[%emt 0:00:07]} 79. Kf2 {[%emt 0:00:12]}
Rd2+ {[%emt 0:00:17]} 80. Kg3 {[%emt 0:00:17]} Nd4 {[%emt 0:00:31]} 81. Qf7 {
[%emt 0:00:02]} Rd3+ {[%emt 0:00:05]} 82. Kg2 {[%emt 0:00:06]} Nc6 {[%emt 0:00:
09]} 83. Qe6 {[%emt 0:00:09]} Rd2+ {[%emt 0:00:03]} 84. Kg3 {[%emt 0:00:05]}
Rd4 {[%emt 0:00:02]} 85. Qb3+ {[%emt 0:00:08]} Kc5 {[%emt 0:00:04]} 86. Qf3 {
[%emt 0:00:08]} Kc4 {[%emt 0:00:25]} 87. Kg4 {[%emt 0:00:04]} Nb4 {[%emt 0:00:
13]} 88. Kf5 {[%emt 0:00:13]} Nd3 {[%emt 0:00:07]} 89. Qd1 {[%emt 0:00:18]} Kc3
{[%emt 0:00:14]} 90. Qa1+ {[%emt 0:00:12]} Kd2 {[%emt 0:00:04]} 91. Qf1 {
[%emt 0:00:21]} Rb4 {[%emt 0:00:08]} 92. Qg2+ {[%emt 0:00:10]} Kc3 {[%emt 0:00:
04]} 93. Qg8 {[%emt 0:00:10]} Rb2 {[%emt 0:00:26]} 94. Qc8+ {[%emt 0:00:13]}
Kd4 {[%emt 0:00:01]} 95. Qd7+ {[%emt 0:00:07]} Ke3 {[%emt 0:00:01]} 96. Qa7+ {
[%emt 0:00:03]} Ke2 {[%emt 0:00:25]} 97. Qa6 {[%emt 0:00:12]} Rc2 {[%emt 0:00:
10]} 98. Qa1 {[%emt 0:00:13]} Ke3 {[%emt 0:00:14]} 99. Qa7+ {[%emt 0:00:04]}
Kd2 {[%emt 0:00:06]} 100. Qa5+ {[%emt 0:00:07]} Ke2 {[%emt 0:00:03]} 101. Qb5 {
[%emt 0:00:05]} Ra2 {[%emt 0:00:14]} 102. Qb7 {[%emt 0:00:19]} Ra1 {[%emt 0:00:
09]} 103. Qb6 {[%emt 0:00:13]} Rc1 {[%emt 0:00:02]} 104. Qb5 {[%emt 0:00:13]}
Rh1 {[%emt 0:00:19]} 105. Qa6 {[%emt 0:00:13]} Ke3 {[%emt 0:00:11]} 106. Qa7+ {
[%emt 0:00:01]} Kf3 {[%emt 0:00:06]} 107. Qa3 {[%emt 0:00:06]} Rd1 {[%emt 0:00:
16]} 108. Qb3 {[%emt 0:00:06]} Ke2 {[%emt 0:00:06]} 109. Qc2+ {[%emt 0:00:06]}
Rd2 {[%emt 0:00:01]} 110. Qc4 {[%emt 0:00:04]} Ke3 {[%emt 0:00:00]} 111. Ke6 {
[%emt 0:00:35]} Rh2 {[%emt 0:00:33]} 112. Kd5 {[%emt 0:00:14]} Rh8 {[%emt 0:00:
16]} 113. Qc7 {[%emt 0:00:06]} Rh2 {[%emt 0:00:13]} 114. Qa7+ {[%emt 0:00:08]}
Kf3 {[%emt 0:00:05]} 115. Qf7+ {[%emt 0:00:11]} Ke2 {[%emt 0:00:03]} 116. Qa7 {
[%emt 0:00:10]} Rf2 {[%emt 0:00:15]} 117. Kc4 {[%emt 0:00:12]} Rf4 {[%emt 0:00:
15]} 118. Kd5 {[%emt 0:00:12]} Rf2 {[%emt 0:00:08]} 119. Kc4 {[%emt 0:00:02]}
Rf4 {[%emt 0:00:01]} 120. Kd5 {[%emt 0:00:01]} Rf1 {[%emt 0:00:13]} 121. Qa2+ {
[%emt 0:00:04]} Kf3 {[%emt 0:00:14]} 122. Qb3 {[%emt 0:00:05]} Ke3 {[%emt 0:00:
07]} 123. Qb6+ {[%emt 0:00:23]} Ke2 {[%emt 0:00:01]} 124. Qb3 {[%emt 0:00:09]}
Rc1 {[%emt 0:00:06]} 125. Qa2+ {[%emt 0:00:14]} Kf3 {[%emt 0:00:05]} 126. Qa4 {
[%emt 0:00:13]} Ke3 {[%emt 0:00:12]} 127. Qa7+ {[%emt 0:00:02]} Kf3 {[%emt 0:
00:18]} 128. Qf7+ {[%emt 0:00:09]} Ke2 {[%emt 0:00:11]} 129. Qa7 {[%emt 0:00:
01]} Rc2 {[%emt 0:00:16]} 130. Qb7 {[%emt 0:00:30]} Rc5+ {[%emt 0:00:10]} 131.
Kd6 {[%emt 0:00:09]} Rc4 {[%emt 0:00:09]} 132. Qf7 {[%emt 0:00:19]} Rxe4 {
[%emt 0:00:15]} 133. Qh5+ 0-1